Workbook

Sheet WA Electric - Sched 88
D4: RESIDENTIAL | E4: GENERAL SVC. | F4: LG. GEN. SVC. | G4: EX LG GEN SVC | H4: PUMPING | I4: ST & AREA LTG
A5: Source | C5: TOTAL | D5: SCH. 1,2 | E5: SCH. 11,12 | F5: SCH. 21,22 | G5: SCHEDULE 25 | H5: SCH. 30, 31, 32 | I5: SCH. 41-48
A7: Forecast | B7: Total Forecasted kWh's | C7: =SUM(D7:I7) -> 5755749641 | D7: =SUM('Revenue By Month'!D5:O5) -> 2457576114 | E7: =SUM('Revenue By Month'!D6:O6) -> 626701861.8 | F7: =SUM('Revenue By Month'!D7:O7) -> 1407436239 | G7: =SUM('Revenue By Month'!D8:O8) -> 1117030437 | H7: =SUM('Revenue By Month'!D9:O9) -> 129131056.6 | I7: =SUM('Revenue By Month'!D10:O10) -> 17873932.73
A9: UE-150204 | B9: Base Revenue | C9: =SUM(D9:I9) -> 491872000 | D9: 211363000 | E9: 70145000 | F9: 128034000 | G9: 64138000 | H9: 11284000 | I9: 6908000
B11: Percentage of Current Base Volumetric Revenue | C11: =SUM(D11:I11) -> 1 | D11: =D9/$C$9 -> 0.4297113883 | E11: 0.1426082395 | F11: 0.2602994275 | G11: 0.1303957127 | H11: 0.02294092772 | I11: 0.01404430421
B13: Revenue Requirement | C13: 1200000
B15: Revenue Spread Based on Current Allocation | C15: =SUM(D15:I15) -> 1200000 | D15: =$C$13*D11 -> 515653.666 | E15: =$C$13*E11 -> 171129.8875 | F15: 312359.313 | G15: 156474.8552 | H15: 27529.11327 | I15: =$C$13*I11 -> 16853.16505
B17: Proposed Rates | D17: =D15/D7 -> 0.0002098220532 | E17: 0.0002730642717 | F17: 0.0002219349655 | G17: 0.0001400811026 | H17: 0.0002131873926 | I17: =I15/I7 -> 0.0009428907062
B19: Present Billed Revenue | C19: =SUM(D19:I19) -> 523529000 | D19: 227178000 | E19: 77451000 | F19: 133184000 | G19: 67050000 | H19: 11443000 | I19: 7223000
B21: Proposed Billed Revenue | C21: =SUM(D21:I21) -> 524729000 | D21: =D15+D19 -> 227693653.7 | E21: =E15+E19 -> 77622129.89 | F21: 133496359.3 | G21: 67206474.86 | H21: 11470529.11 | I21: 7239853.165
B23: Overall Billed Percentage Increase <Decrease> | C23: =C21/C19-1 -> 0.002292136634 | D23: =D21/D19-1 -> 0.002269822192 | E23: =E21/E19-1 -> 0.00220952457 | F23: =F21/F19-1 -> 0.002345321608 | G23: 0.002333704031 | H23: 0.002405760139 | I23: 0.002333263886
B25: Average Monthly Bill @ 938 kWh's - Increase <Decrease> | D25: =ROUND(D17,5)*938 -> 0.19698
C28: Present | D28: Proposed | E28: Change
B29: Gross R&D Revenue | C29: 0 | D29: =C15 -> 1200000 | E29: =D29-C29 -> 1200000
B30: Revenue Conversion Factor | C30: ='Rev Conv Factor'!E22 -> 0.9538531989 | D30: ='Rev Conv Factor'!E22 -> 0.9538531989
B32: Net R&D Revenue | C32: =C29*C30 -> 0 | D32: =D29*D30 -> 1144623.839 | E32: =D32-C32 -> 1144623.839

Sheet Revenue By Month
A4: Forecasted Usage | D4: 2018-01-01 | E4: 2018-02-01 | F4: 2018-03-01 | G4: 2018-04-01 | H4: 2018-05-01 | I4: 2018-06-01 | J4: 2018-07-01 | K4: 2018-08-01 | L4: 2018-09-01 | M4: 2018-10-01 | N4: 2018-11-01 | O4: 2018-12-01
B5: Residential Schedule 001/002 | D5: ='Billing Determinants'!B19 -> 276988691.2 | E5: ='Billing Determinants'!C19 -> 221800956.2 | F5: ='Billing Determinants'!D19 -> 217487024.8 | G5: ='Billing Determinants'!E19 -> 180931205.3 | H5: ='Billing Determinants'!F19 -> 165504786.8 | I5: ='Billing Determinants'!G19 -> 159180004.8 | J5: ='Billing Determinants'!H19 -> 194722364.2 | K5: ='Billing Determinants'!I19 -> 184091057.5 | L5: ='Billing Determinants'!J19 -> 157560688.5 | M5: ='Billing Determinants'!K19 -> 181198329.5 | N5: ='Billing Determinants'!L19 -> 228683387.4 | O5: ='Billing Determinants'!M19 -> 289427617.3
B6: General Svc Schedule 011/012 | D6: ='Billing Determinants'!B20 -> 61193498.04 | E6: ='Billing Determinants'!C20 -> 51637801.69 | F6: ='Billing Determinants'!D20 -> 52777939.27 | G6: ='Billing Determinants'!E20 -> 47067094.8 | H6: ='Billing Determinants'!F20 -> 46794956.5 | I6: ='Billing Determinants'!G20 -> 46841566.91 | J6: ='Billing Determinants'!H20 -> 55570138.2 | K6: ='Billing Determinants'!I20 -> 52554129.59 | L6: ='Billing Determinants'!J20 -> 46416735.87 | M6: ='Billing Determinants'!K20 -> 50028020.7 | N6: ='Billing Determinants'!L20 -> 53972345.11 | O6: ='Billing Determinants'!M20 -> 61847635.15
B7: Large Gen Svc Schedule 021/022 | D7: ='Billing Determinants'!B21 -> 123159634.3 | E7: ='Billing Determinants'!C21 -> 106529006.7 | F7: ='Billing Determinants'!D21 -> 113991240.3 | G7: ='Billing Determinants'!E21 -> 108120868.4 | H7: ='Billing Determinants'!F21 -> 112835474.5 | I7: ='Billing Determinants'!G21 -> 113945299.4 | J7: ='Billing Determinants'!H21 -> 131530141.4 | K7: ='Billing Determinants'!I21 -> 124102704 | L7: ='Billing Determinants'!J21 -> 112087462.2 | M7: ='Billing Determinants'!K21 -> 118940759.1 | N7: ='Billing Determinants'!L21 -> 116959975.2 | O7: ='Billing Determinants'!M21 -> 125233673.1
B8: Extra Large Gen Schedule 25 | D8: ='Billing Determinants'!B22 -> 91954920.14 | E8: ='Billing Determinants'!C22 -> 91680623.33 | F8: ='Billing Determinants'!D22 -> 89975531.04 | G8: ='Billing Determinants'!E22 -> 91951519.83 | H8: ='Billing Determinants'!F22 -> 92774510.06 | I8: ='Billing Determinants'!G22 -> 92304315.92 | J8: ='Billing Determinants'!H22 -> 92381168.8 | K8: ='Billing Determinants'!I22 -> 95801534.5 | L8: ='Billing Determinants'!J22 -> 96058766.26 | M8: ='Billing Determinants'!K22 -> 94925036.04 | N8: ='Billing Determinants'!L22 -> 94112428.56 | O8: ='Billing Determinants'!M22 -> 93110082.73
B9: Pumping Schedule 31/32 | D9: ='Billing Determinants'!B23 -> 4026613.114 | E9: ='Billing Determinants'!C23 -> 3512438.187 | F9: ='Billing Determinants'!D23 -> 4392576.279 | G9: ='Billing Determinants'!E23 -> 7255298.132 | H9: ='Billing Determinants'!F23 -> 12858892.16 | I9: ='Billing Determinants'!G23 -> 17164120.11 | J9: ='Billing Determinants'!H23 -> 23738064.62 | K9: ='Billing Determinants'!I23 -> 23355253.28 | L9: ='Billing Determinants'!J23 -> 15917342.08 | M9: ='Billing Determinants'!K23 -> 8783785.553 | N9: ='Billing Determinants'!L23 -> 4231260.144 | O9: ='Billing Determinants'!M23 -> 3895412.936
B10: Street and Area Lights | D10: ='Billing Determinants'!B24 -> 1525945.066 | E10: ='Billing Determinants'!C24 -> 1504210.663 | F10: ='Billing Determinants'!D24 -> 1506535.19 | G10: ='Billing Determinants'!E24 -> 1503052.451 | H10: ='Billing Determinants'!F24 -> 1495752.099 | I10: ='Billing Determinants'!G24 -> 1491875.997 | J10: ='Billing Determinants'!H24 -> 1487548.733 | K10: ='Billing Determinants'!I24 -> 1479929.062 | L10: ='Billing Determinants'!J24 -> 1467615.212 | M10: ='Billing Determinants'!K24 -> 1467813.884 | N10: ='Billing Determinants'!L24 -> 1471889.944 | O10: ='Billing Determinants'!M24 -> 1471764.424
A11: Total Forecasted Usage | D11: =SUM(D5:D10) -> 558849301.9 | E11: 476665036.8 | F11: 480130846.9 | G11: 436829038.8 | H11: 432264372.1 | I11: 430927183.2 | J11: 499429425.9 | K11: 481384608 | L11: 429508610.2 | M11: 455343744.7 | N11: 499431286.4 | O11: 574986185.6
D12: =D11-'Billing Determinants'!B25 -> 0 | E12: =E11-'Billing Determinants'!C25 -> 0 | F12: =F11-'Billing Determinants'!D25 -> 0 | G12: =G11-'Billing Determinants'!E25 -> 0 | H12: =H11-'Billing Determinants'!F25 -> 0 | I12: =I11-'Billing Determinants'!G25 -> 0 | J12: =J11-'Billing Determinants'!H25 -> 0 | K12: =K11-'Billing Determinants'!I25 -> 0 | L12: =L11-'Billing Determinants'!J25 -> 0 | M12: =M11-'Billing Determinants'!K25 -> 0 | N12: =N11-'Billing Determinants'!L25 -> 0 | O12: =O11-'Billing Determinants'!M25 -> 0
A14: R&D Rates
B15: Residential Schedule 001/002 | D15: ='WA Electric - Sched 88'!$D$17 -> 0.0002098220532 | E15: ='WA Electric - Sched 88'!$D$17 -> 0.0002098220532 | F15: ='WA Electric - Sched 88'!$D$17 -> 0.0002098220532 | G15: ='WA Electric - Sched 88'!$D$17 -> 0.0002098220532 | H15: ='WA Electric - Sched 88'!$D$17 -> 0.0002098220532 | I15: ='WA Electric - Sched 88'!$D$17 -> 0.0002098220532 | J15: ='WA Electric - Sched 88'!$D$17 -> 0.0002098220532 | K15: ='WA Electric - Sched 88'!$D$17 -> 0.0002098220532 | L15: ='WA Electric - Sched 88'!$D$17 -> 0.0002098220532 | M15: ='WA Electric - Sched 88'!$D$17 -> 0.0002098220532 | N15: ='WA Electric - Sched 88'!$D$17 -> 0.0002098220532 | O15: ='WA Electric - Sched 88'!$D$17 -> 0.0002098220532
B16: General Svc Schedule 011/012 | D16: ='WA Electric - Sched 88'!$E$17 -> 0.0002730642717 | E16: ='WA Electric - Sched 88'!$E$17 -> 0.0002730642717 | F16: ='WA Electric - Sched 88'!$E$17 -> 0.0002730642717 | G16: ='WA Electric - Sched 88'!$E$17 -> 0.0002730642717 | H16: ='WA Electric - Sched 88'!$E$17 -> 0.0002730642717 | I16: ='WA Electric - Sched 88'!$E$17 -> 0.0002730642717 | J16: ='WA Electric - Sched 88'!$E$17 -> 0.0002730642717 | K16: ='WA Electric - Sched 88'!$E$17 -> 0.0002730642717 | L16: ='WA Electric - Sched 88'!$E$17 -> 0.0002730642717 | M16: ='WA Electric - Sched 88'!$E$17 -> 0.0002730642717 | N16: ='WA Electric - Sched 88'!$E$17 -> 0.0002730642717 | O16: ='WA Electric - Sched 88'!$E$17 -> 0.0002730642717
B17: Large Gen Svc Schedule 021/022 | D17: ='WA Electric - Sched 88'!$F$17 -> 0.0002219349655 | E17: ='WA Electric - Sched 88'!$F$17 -> 0.0002219349655 | F17: ='WA Electric - Sched 88'!$F$17 -> 0.0002219349655 | G17: ='WA Electric - Sched 88'!$F$17 -> 0.0002219349655 | H17: ='WA Electric - Sched 88'!$F$17 -> 0.0002219349655 | I17: ='WA Electric - Sched 88'!$F$17 -> 0.0002219349655 | J17: ='WA Electric - Sched 88'!$F$17 -> 0.0002219349655 | K17: ='WA Electric - Sched 88'!$F$17 -> 0.0002219349655 | L17: ='WA Electric - Sched 88'!$F$17 -> 0.0002219349655 | M17: ='WA Electric - Sched 88'!$F$17 -> 0.0002219349655 | N17: ='WA Electric - Sched 88'!$F$17 -> 0.0002219349655 | O17: ='WA Electric - Sched 88'!$F$17 -> 0.0002219349655
B18: Extra Large Gen Schedule 25 | D18: ='WA Electric - Sched 88'!$G$17 -> 0.0001400811026 | E18: ='WA Electric - Sched 88'!$G$17 -> 0.0001400811026 | F18: ='WA Electric - Sched 88'!$G$17 -> 0.0001400811026 | G18: ='WA Electric - Sched 88'!$G$17 -> 0.0001400811026 | H18: ='WA Electric - Sched 88'!$G$17 -> 0.0001400811026 | I18: ='WA Electric - Sched 88'!$G$17 -> 0.0001400811026 | J18: ='WA Electric - Sched 88'!$G$17 -> 0.0001400811026 | K18: ='WA Electric - Sched 88'!$G$17 -> 0.0001400811026 | L18: ='WA Electric - Sched 88'!$G$17 -> 0.0001400811026 | M18: ='WA Electric - Sched 88'!$G$17 -> 0.0001400811026 | N18: ='WA Electric - Sched 88'!$G$17 -> 0.0001400811026 | O18: ='WA Electric - Sched 88'!$G$17 -> 0.0001400811026
B19: Pumping Schedule 31/32 | D19: ='WA Electric - Sched 88'!$H$17 -> 0.0002131873926 | E19: ='WA Electric - Sched 88'!$H$17 -> 0.0002131873926 | F19: ='WA Electric - Sched 88'!$H$17 -> 0.0002131873926 | G19: ='WA Electric - Sched 88'!$H$17 -> 0.0002131873926 | H19: ='WA Electric - Sched 88'!$H$17 -> 0.0002131873926 | I19: ='WA Electric - Sched 88'!$H$17 -> 0.0002131873926 | J19: ='WA Electric - Sched 88'!$H$17 -> 0.0002131873926 | K19: ='WA Electric - Sched 88'!$H$17 -> 0.0002131873926 | L19: ='WA Electric - Sched 88'!$H$17 -> 0.0002131873926 | M19: ='WA Electric - Sched 88'!$H$17 -> 0.0002131873926 | N19: ='WA Electric - Sched 88'!$H$17 -> 0.0002131873926 | O19: ='WA Electric - Sched 88'!$H$17 -> 0.0002131873926
B20: Street and Area Lights | D20: ='WA Electric - Sched 88'!$I$17 -> 0.0009428907062 | E20: ='WA Electric - Sched 88'!$I$17 -> 0.0009428907062 | F20: ='WA Electric - Sched 88'!$I$17 -> 0.0009428907062 | G20: ='WA Electric - Sched 88'!$I$17 -> 0.0009428907062 | H20: ='WA Electric - Sched 88'!$I$17 -> 0.0009428907062 | I20: ='WA Electric - Sched 88'!$I$17 -> 0.0009428907062 | J20: ='WA Electric - Sched 88'!$I$17 -> 0.0009428907062 | K20: ='WA Electric - Sched 88'!$I$17 -> 0.0009428907062 | L20: ='WA Electric - Sched 88'!$I$17 -> 0.0009428907062 | M20: ='WA Electric - Sched 88'!$I$17 -> 0.0009428907062 | N20: ='WA Electric - Sched 88'!$I$17 -> 0.0009428907062 | O20: ='WA Electric - Sched 88'!$I$17 -> 0.0009428907062
A23: Gross R&D Revenue | D23: January | E23: February | F23: March | G23: April | H23: May | I23: June | J23: July | K23: August | L23: September | M23: October | N23: November | O23: December
B24: Residential Schedule 001/002 | D24: =D5*D15 -> 58118.3359 | E24: 46538.73202 | F24: 45633.57409 | G24: 37963.35697 | H24: 34726.55418 | I24: 33399.47544 | J24: 40857.04625 | K24: 38626.36366 | L24: 33059.70717 | M24: 38019.40553 | N24: 47982.81788 | O24: 60728.29691
B25: General Svc Schedule 011/012 | D25: =D6*D16 -> 16709.75797 | E25: 14100.43871 | F25: 14411.76955 | G25: 12852.34196 | H25: 12778.03071 | I25: 12790.75835 | J25: 15174.21932 | K25: 14350.65512 | L25: 12674.75217 | M25: 13660.86503 | N25: 14737.91911 | O25: 16888.37945
B26: Large Gen Svc Schedule 021/022 | D26: =D7*D17 -> 27333.42919 | E26: 23642.51143 | F26: 25298.64197 | G26: 23995.80119 | H26: 25042.13714 | I26: 25288.44608 | J26: 29191.13739 | K26: 27542.72932 | L26: 24876.12706 | M26: 26397.11326 | N26: 25957.50806 | O26: 27793.73091
B27: Extra Large Gen Schedule 25 | D27: =D8*D18 -> 12881.1466 | E27: 12842.7228 | F27: 12603.87159 | G27: 12880.67028 | H27: 12995.95566 | I27: 12930.09035 | J27: 12940.85598 | K27: 13419.98458 | L27: 13456.01789 | M27: 13297.20371 | N27: 13183.37276 | O27: 13042.96305
B28: Pumping Schedule 31/32 | D28: =D9*D19 -> 858.423151 | E28: 748.807539 | F28: 936.4418838 | G28: 1546.738092 | H28: 2741.353692 | I28: 3659.174013 | J28: 5060.656103 | K28: 4979.045552 | L28: 3393.376656 | M28: 1872.59234 | N28: 902.0513177 | O28: 830.4529271
B29: Street and Area Lights | D29: =D10*D20 -> 1438.799421 | E29: 1418.306254 | F29: 1420.498029 | G29: 1417.214187 | H29: 1410.330753 | I29: 1406.676012 | J29: 1402.595876 | K29: 1395.411359 | L29: 1383.800744 | M29: 1383.98807 | N29: 1387.831349 | O29: 1387.712997
B30: Total | D30: =SUM(D24:D29) -> 117339.8922 | E30: 99291.51875 | F30: 100304.7971 | G30: 90656.12268 | H30: 89694.36213 | I30: 89474.62025 | J30: 104626.5109 | K30: 100314.1896 | L30: =SUM(L24:L29) -> 88843.78169 | M30: 94631.16794 | N30: 104151.5005 | O30: 120671.5362 | Q30: =SUM(D30:O30)-'WA Electric - Sched 88'!D29 -> 0
A32: Net R&D Revenue | C32: ='Rev Conv Factor'!E22 -> 0.9538531989 | D32: January | E32: February | F32: March | G32: April | H32: May | I32: June | J32: July | K32: August | L32: September | M32: October | N32: November | O32: December
B33: Residential Schedule 001/002 | D33: =D24*$C$32 -> 55436.36061 | E33: 44391.11841 | F33: 43527.73062 | G33: 36211.46949 | H33: 33124.03479 | I33: 31858.19649 | J33: 38971.62426 | K33: 36843.88054 | L33: 31534.10743 | M33: 36264.93158 | N33: 45768.56433 | O33: 57925.88027
B34: General Svc Schedule 011/012 | D34: =D25*$C$32 -> 15938.6561 | E34: 13449.74857 | F34: 13746.71248 | G34: 12259.24749 | H34: 12188.36547 | I34: 12200.50577 | J34: 14473.97763 | K34: 13688.41829 | L34: 12089.8529 | M34: 13030.45981 | N34: 14057.81128 | O34: 16109.03476
B35: Large Gen Svc Schedule 021/022 | D35: =D26*$C$32 -> 26072.07886 | E35: 22551.48515 | F35: 24131.19057 | G35: 22888.47172 | H35: 23886.52261 | I35: 24121.46519 | J35: 27844.05978 | K35: 26271.72047 | L35: 23728.17337 | M35: 25178.97092 | N35: 24759.6521 | O35: 26511.13914
B36: Extra Large Gen Schedule 25 | D36: =D27*$C$32 -> 12286.72289 | E36: 12250.07223 | F36: 12022.24324 | G36: 12286.26855 | H36: 12396.23388 | I36: 12333.40804 | J36: 12343.67687 | K36: 12800.69522 | L36: 12835.06571 | M36: 12683.58029 | N36: 12575.00228 | O36: 12441.07203
B37: Pumping Schedule 31/32 | D37: =D28*$C$32 -> 818.8096686 | E37: 714.2524664 | F37: 893.2280864 | G37: 1475.361076 | H37: 2614.848988 | I37: 3490.314838 | J37: 4827.123012 | K37: 4749.278527 | L37: 3236.783179 | M37: 1786.178193 | N37: 860.4245349 | O37: 792.130181
B38: Street and Area Lights | D38: =D29*$C$32 -> 1372.40343 | E38: 1352.855957 | F38: 1354.946589 | G38: 1351.814286 | H38: 1345.2485 | I38: 1341.762414 | J38: 1337.870563 | K38: 1331.017588 | L38: 1319.942766 | M38: 1320.121448 | N38: 1323.787372 | O38: 1323.674481
B39: Total | D39: =SUM(D33:D38) -> 111925.0316 | E39: 94709.53278 | F39: 95676.05159 | G39: 86472.63262 | H39: 85555.25424 | I39: 85345.65274 | J39: 99798.33212 | K39: 95685.01064 | L39: 84743.92536 | M39: 90264.24225 | N39: 99345.24189 | O39: 115102.9309 | Q39: =SUM(D39:O39)-'WA Electric - Sched 88'!D32 -> 0

Sheet Rev Conv Factor
A1: AVISTA UTILITIES
A2: Revenue Conversion Factor
A3: Washington - Electric System
A4: TWELVE MONTHS ENDED SEPTEMBER 30, 2014
A6: Line
A7: No. | C7: Description | E7: Factor
A9: 1 | C9: Revenues | E9: 1
C11: Expense:
A12: 2 | C12: Uncollectibles | E12: 0.005630908749
A14: 3 | C14: Commission Fees | E14: 0.002
A16: 4 | C16: Washington Excise Tax | E16: 0.03851589238
A18: 5 | C18: Franchise Fees | E18: 0
A20: 6 | C20: Total Expense | E20: =E12+E14+E16+E18 -> 0.04614680113
A22: 7 | C22: Net Operating Income Before FIT | E22: =E9-E20 -> 0.9538531989
A24: 8 | C24: Federal Income Tax @ 35% | E24: 0.333849
A26: 9 | C26: REVENUE CONVERSION FACTOR | E26: =E22-E24 -> 0.6200041989
A29: Source: UE-150204

Sheet Billing Determinants
A4: Forecasted Loads
B7: 2018-01-01 | C7: 2018-02-01 | D7: 2018-03-01 | E7: 2018-04-01 | F7: 2018-05-01 | G7: 2018-06-01 | H7: 2018-07-01 | I7: 2018-08-01 | J7: 2018-09-01 | K7: 2018-10-01 | L7: 2018-11-01 | M7: 2018-12-01
A8: WA001 | B8: 276988691.2 | C8: 221800956.2 | D8: 217487024.8 | E8: 180931205.3 | F8: 165504786.8 | G8: 159180004.8 | H8: 194722364.2 | I8: 184091057.5 | J8: 157560688.5 | K8: 181198329.5 | L8: 228683387.4 | M8: 289427617.3
A9: WA011 | B9: 54396406.98 | C9: 46064187.06 | D9: 47384712.46 | E9: 42599874.79 | F9: 42625273.2 | G9: 42911599.21 | H9: 51160267.01 | I9: 48305210.11 | J9: 42472071.51 | K9: 45506959.02 | L9: 48493203.5 | M9: 55018750.29
A10: WA012 | B10: 6797091.064 | C10: 5573614.628 | D10: 5393226.817 | E10: 4467220.012 | F10: 4169683.299 | G10: 3929967.701 | H10: 4409871.192 | I10: 4248919.473 | J10: 3944664.353 | K10: 4521061.68 | L10: 5479141.607 | M10: 6828884.851
A11: WA021 | B11: 119785442.2 | C11: 103726092.5 | D11: 111192947.4 | E11: 105676884.1 | F11: 110438901.9 | G11: 111595767.8 | H11: 128779332.8 | I11: 121490885 | J11: 109755614.7 | K11: 116414982.7 | L11: 114186826.1 | M11: 121940147.6
A12: WA022 | B12: 3374192.133 | C12: 2802914.225 | D12: 2798292.917 | E12: 2443984.288 | F12: 2396572.633 | G12: 2349531.592 | H12: 2750808.611 | I12: 2611818.975 | J12: 2331847.536 | K12: 2525776.353 | L12: 2773149.139 | M12: 3293525.512
A13: WA025 | B13: 91954920.14 | C13: 91680623.33 | D13: 89975531.04 | E13: 91951519.83 | F13: 92774510.06 | G13: 92304315.92 | H13: 92381168.8 | I13: 95801534.5 | J13: 96058766.26 | K13: 94925036.04 | L13: 94112428.56 | M13: 93110082.73
A14: WA031 | B14: 3733492.127 | C14: 3265283.222 | D14: 4124007.172 | E14: 6769360.669 | F14: 12065991.79 | G14: 15995304.54 | H14: 21975557.84 | I14: 21766114.93 | J14: 14925026.74 | K14: 8244182.959 | L14: 3948466.589 | M14: 3616330.747
A15: WA032 | B15: 293120.9876 | C15: 247154.9654 | D15: 268569.1066 | E15: 485937.4624 | F15: 792900.3671 | G15: 1168815.565 | H15: 1762506.778 | I15: 1589138.352 | J15: 992315.3418 | K15: 539602.594 | L15: 282793.5551 | M15: 279082.1889
A16: WA04X | B16: 1525945.066 | C16: 1504210.663 | D16: 1506535.19 | E16: 1503052.451 | F16: 1495752.099 | G16: 1491875.997 | H16: 1487548.733 | I16: 1479929.062 | J16: 1467615.212 | K16: 1467813.884 | L16: 1471889.944 | M16: 1471764.424
B17: =SUM(B8:B16) -> 558849301.9 | C17: 476665036.8 | D17: 480130846.9 | E17: 436829038.8 | F17: 432264372.1 | G17: 430927183.2 | H17: 499429425.9 | I17: 481384608 | J17: 429508610.2 | K17: 455343744.7 | L17: 499431286.4 | M17: 574986185.6
A19: WA001 | B19: =B8 -> 276988691.2 | C19: 221800956.2 | D19: 217487024.8 | E19: 180931205.3 | F19: 165504786.8 | G19: 159180004.8 | H19: 194722364.2 | I19: 184091057.5 | J19: 157560688.5 | K19: 181198329.5 | L19: 228683387.4 | M19: 289427617.3
A20: WA011/12 | B20: =B9+B10 -> 61193498.04 | C20: 51637801.69 | D20: 52777939.27 | E20: 47067094.8 | F20: 46794956.5 | G20: 46841566.91 | H20: 55570138.2 | I20: 52554129.59 | J20: 46416735.87 | K20: 50028020.7 | L20: 53972345.11 | M20: 61847635.15
A21: WA021/22 | B21: =B11+B12 -> 123159634.3 | C21: 106529006.7 | D21: 113991240.3 | E21: 108120868.4 | F21: 112835474.5 | G21: 113945299.4 | H21: 131530141.4 | I21: 124102704 | J21: 112087462.2 | K21: 118940759.1 | L21: 116959975.2 | M21: 125233673.1
A22: WA025 | B22: =B13 -> 91954920.14 | C22: 91680623.33 | D22: 89975531.04 | E22: 91951519.83 | F22: 92774510.06 | G22: 92304315.92 | H22: 92381168.8 | I22: 95801534.5 | J22: 96058766.26 | K22: 94925036.04 | L22: 94112428.56 | M22: 93110082.73
A23: WA031/32 | B23: =B14+B15 -> 4026613.114 | C23: 3512438.187 | D23: 4392576.279 | E23: 7255298.132 | F23: 12858892.16 | G23: 17164120.11 | H23: 23738064.62 | I23: 23355253.28 | J23: 15917342.08 | K23: 8783785.553 | L23: 4231260.144 | M23: 3895412.936
A24: WA04X | B24: =B16 -> 1525945.066 | C24: 1504210.663 | D24: 1506535.19 | E24: 1503052.451 | F24: 1495752.099 | G24: 1491875.997 | H24: 1487548.733 | I24: 1479929.062 | J24: 1467615.212 | K24: 1467813.884 | L24: 1471889.944 | M24: 1471764.424
A25: Total | B25: =SUM(B19:B24) -> 558849301.9 | C25: 476665036.8 | D25: 480130846.9 | E25: 436829038.8 | F25: 432264372.1 | G25: 430927183.2 | H25: 499429425.9 | I25: 481384608 | J25: 429508610.2 | K25: 455343744.7 | L25: 499431286.4 | M25: 574986185.6
